[Event "Early-Titled-Tuesday-Blitz-January-23-2024"]
[Site "Chess.com"]
[Date "2024.01.23"]
[Round "11"]
[White "DTChess"]
[Black "FMCASTE"]
[Result "1-0"]
[WhiteElo "2616"]
[BlackElo "2499"]
[TimeControl "180+1"]
[EndTime "10:06:25 PST"]
[Termination "DTChess won by checkmate"]

1. e4 {[%clk 0:03:00.9]} 1... g6 {[%clk 0:03:00.9]} 2. d4 {[%clk 0:03:00.8]}
2... Bg7 {[%clk 0:03:01.6]} 3. Nc3 {[%clk 0:03:01.1]} 3... d6 {[%clk 0:03:02.5]}
4. Be3 {[%clk 0:03:00.9]} 4... a6 {[%clk 0:03:03.4]} 5. Bc4 {[%clk 0:03:00.4]}
5... e6 {[%clk 0:03:03.3]} 6. Bb3 {[%clk 0:03:00.8]} 6... Ne7 {[%clk 0:03:03.5]}
7. Nge2 {[%clk 0:03:00.8]} 7... h6 {[%clk 0:03:04.4]} 8. f3 {[%clk 0:03:01]}
8... Nd7 {[%clk 0:03:03.4]} 9. h4 {[%clk 0:03:00.7]} 9... b5 {[%clk 0:03:03.7]}
10. a3 {[%clk 0:03:00]} 10... Bb7 {[%clk 0:03:04.2]} 11. Qd2 {[%clk 0:03:00.2]}
11... Nb6 {[%clk 0:03:03.7]} 12. O-O-O {[%clk 0:02:55.3]} 12... d5 {[%clk
0:03:03.7]} 13. h5 {[%clk 0:02:54.1]} 13... g5 {[%clk 0:03:00.3]} 14. g4 {[%clk
0:02:32.8]} 14... Qd7 {[%clk 0:02:59.3]} 15. f4 {[%clk 0:02:20.2]} 15... gxf4
{[%clk 0:02:49.6]} 16. Nxf4 {[%clk 0:02:20]} 16... dxe4 {[%clk 0:02:50.2]} 17.
d5 {[%clk 0:02:13.6]} 17... Nbxd5 {[%clk 0:02:46.8]} 18. Ncxd5 {[%clk
0:02:10.8]} 18... Nxd5 {[%clk 0:02:46.7]} 19. Nxd5 {[%clk 0:02:09.2]} 19... Bxd5
{[%clk 0:02:46.1]} 20. Bxd5 {[%clk 0:02:05.7]} 20... exd5 {[%clk 0:02:37.9]} 21.
Bd4 {[%clk 0:01:52.9]} 21... Bxd4 {[%clk 0:02:31.6]} 22. Qxd4 {[%clk 0:01:51.7]}
22... O-O-O {[%clk 0:02:31.6]} 23. Rhf1 {[%clk 0:01:49.1]} 23... Kb7 {[%clk
0:02:12]} 24. a4 {[%clk 0:01:38.8]} 24... Rhe8 {[%clk 0:02:08.2]} 25. axb5
{[%clk 0:01:38]} 25... axb5 {[%clk 0:02:07.4]} 26. Rf6 {[%clk 0:01:30.9]} 26...
Qxg4 {[%clk 0:02:04.1]} 27. Rxf7 {[%clk 0:01:21.8]} 27... Qxh5 {[%clk
0:01:49.3]} 28. Rdf1 {[%clk 0:01:08.9]} 28... e3 {[%clk 0:01:44.4]} 29. Qc5
{[%clk 0:01:03.6]} 29... Qe5 {[%clk 0:01:32.4]} 30. Qxb5+ {[%clk 0:01:02.5]}
30... Ka7 {[%clk 0:01:30.8]} 31. R1f6 {[%clk 0:00:52.1]} 31... Re6 {[%clk
0:00:30.5]} 32. Rxe6 {[%clk 0:00:48.9]} 32... Qxe6 {[%clk 0:00:31.4]} 33. Rxc7+
{[%clk 0:00:48.6]} 33... Ka8 {[%clk 0:00:30.2]} 34. Qb7# {[%clk 0:00:48.8]} 1-0

[Event "Early-Titled-Tuesday-Blitz-January-23-2024"]
[Site "Chess.com"]
[Date "2024.01.23"]
[Round "11"]
[White "secretsuperstar7"]
[Black "giomar27"]
[Result "1/2-1/2"]
[WhiteElo "2508"]
[BlackElo "2419"]
[TimeControl "180+1"]
[EndTime "10:06:33 PST"]
[Termination "Game drawn by repetition"]

1. c4 {[%clk 0:02:59.6]} 1... f6 {[%clk 0:03:00.1]} 2. d4 {[%clk 0:02:56.2]}
2... g6 {[%clk 0:03:00]} 3. e4 {[%clk 0:02:55.9]} 3... Nh6 {[%clk 0:03:00.5]} 4.
Nc3 {[%clk 0:02:54.9]} 4... Nf7 {[%clk 0:03:01]} 5. Nf3 {[%clk 0:02:54.9]} 5...
Bg7 {[%clk 0:03:01.6]} 6. Be2 {[%clk 0:02:54.3]} 6... O-O {[%clk 0:03:02.2]} 7.
O-O {[%clk 0:02:54.6]} 7... d6 {[%clk 0:03:02.6]} 8. d5 {[%clk 0:02:54]} 8... e5
{[%clk 0:03:02.6]} 9. dxe6 {[%clk 0:02:53.8]} 9... Bxe6 {[%clk 0:03:02]} 10. Nd4
{[%clk 0:02:53.2]} 10... Bd7 {[%clk 0:03:01.7]} 11. Be3 {[%clk 0:02:52.6]} 11...
Nc6 {[%clk 0:03:01.8]} 12. Nd5 {[%clk 0:02:51.1]} 12... Re8 {[%clk 0:02:58.7]}
13. f3 {[%clk 0:02:47.9]} 13... Nxd4 {[%clk 0:02:47.3]} 14. Bxd4 {[%clk
0:02:47.6]} 14... Ne5 {[%clk 0:02:47.6]} 15. c5 {[%clk 0:02:43]} 15... c6 {[%clk
0:02:32]} 16. Nc3 {[%clk 0:02:39.9]} 16... dxc5 {[%clk 0:02:30.6]} 17. Bxc5
{[%clk 0:02:39.3]} 17... b6 {[%clk 0:02:26.8]} 18. Be3 {[%clk 0:02:34.8]} 18...
Be6 {[%clk 0:02:25.1]} 19. Qa4 {[%clk 0:02:33.1]} 19... Qc7 {[%clk 0:02:17.5]}
20. Rac1 {[%clk 0:02:31.4]} 20... f5 {[%clk 0:01:58.5]} 21. Nd5 {[%clk
0:02:26.9]} 21... Qf7 {[%clk 0:01:51.5]} 22. Nf4 {[%clk 0:02:23.3]} 22... fxe4
{[%clk 0:01:45.6]} 23. Nxe6 {[%clk 0:02:19.3]} 23... Qxe6 {[%clk 0:01:44.7]} 24.
f4 {[%clk 0:02:19.4]} 24... Nd3 {[%clk 0:01:41.1]} 25. Rxc6 {[%clk 0:02:18.5]}
25... Qd7 {[%clk 0:01:34.1]} 26. Qc4+ {[%clk 0:02:12.7]} 26... Kh8 {[%clk
0:01:31]} 27. Rc7 {[%clk 0:02:12.5]} 27... Qe6 {[%clk 0:01:26.3]} 28. Qc2 {[%clk
0:02:08.7]} 28... Rac8 {[%clk 0:01:17.1]} 29. Rd1 {[%clk 0:02:01.8]} 29... Rxc7
{[%clk 0:01:14.8]} 30. Qxc7 {[%clk 0:02:02.7]} 30... Qxa2 {[%clk 0:01:01.6]} 31.
Qd7 {[%clk 0:01:51.1]} 31... Qe6 {[%clk 0:00:58]} 32. Qxa7 {[%clk 0:01:50]}
32... Bxb2 {[%clk 0:00:54.3]} 33. Bxb6 {[%clk 0:01:43.6]} 33... Nxf4 {[%clk
0:00:24.7]} 34. Bd4+ {[%clk 0:01:38.6]} 34... Bxd4+ {[%clk 0:00:24.2]} 35. Qxd4+
{[%clk 0:01:37.6]} 35... Qe5 {[%clk 0:00:24.8]} 36. Qe3 {[%clk 0:01:35.6]} 36...
Qg5 {[%clk 0:00:17.8]} 37. Qd4+ {[%clk 0:01:28.1]} 37... Qe5 {[%clk 0:00:14.3]}
38. Qe3 {[%clk 0:01:27.6]} 38... Nxe2+ {[%clk 0:00:14.1]} 39. Qxe2 {[%clk
0:01:28]} 39... e3 {[%clk 0:00:14.8]} 40. Rd3 {[%clk 0:01:23.1]} 40... Qa1+
{[%clk 0:00:13.5]} 41. Rd1 {[%clk 0:01:22.8]} 41... Qe5 {[%clk 0:00:13.2]} 42.
Rd3 {[%clk 0:01:22.9]} 42... Qf4 {[%clk 0:00:12.5]} 43. Qb2+ {[%clk 0:01:19.9]}
43... Qe5 {[%clk 0:00:12.6]} 44. Qe2 {[%clk 0:01:17.5]} 1/2-1/2

[Event "Early-Titled-Tuesday-Blitz-January-23-2024"]
[Site "Chess.com"]
[Date "2024.01.23"]
[Round "11"]
[White "Zgorl"]
[Black "Alex_Sahakyan2006"]
[Result "0-1"]
[WhiteElo "2535"]
[BlackElo "2716"]
[TimeControl "180+1"]
[EndTime "10:06:36 PST"]
[Termination "Alex_Sahakyan2006 won by resignation"]

1. Nf3 {[%clk 0:03:00.9]} 1... d5 {[%clk 0:02:59.9]} 2. c4 {[%clk 0:02:59]} 2...
d4 {[%clk 0:03:00.3]} 3. b4 {[%clk 0:02:58.6]} 3... g5 {[%clk 0:03:00.1]} 4. h3
{[%clk 0:02:57.8]} 4... h6 {[%clk 0:03:00.2]} 5. g3 {[%clk 0:02:55.1]} 5... Bg7
{[%clk 0:02:59.9]} 6. d3 {[%clk 0:02:54.9]} 6... e5 {[%clk 0:02:59.3]} 7. Bg2
{[%clk 0:02:53.4]} 7... Ne7 {[%clk 0:02:59.7]} 8. Nbd2 {[%clk 0:02:45.6]} 8...
O-O {[%clk 0:02:59.3]} 9. O-O {[%clk 0:02:41.7]} 9... Ng6 {[%clk 0:02:46.7]} 10.
a4 {[%clk 0:02:40.3]} 10... f5 {[%clk 0:02:35.9]} 11. c5 {[%clk 0:02:25.4]}
11... h5 {[%clk 0:02:27.7]} 12. Nc4 {[%clk 0:02:09.3]} 12... g4 {[%clk
0:02:27.7]} 13. hxg4 {[%clk 0:02:09]} 13... hxg4 {[%clk 0:02:28.6]} 14. Nfd2
{[%clk 0:02:08.4]} 14... Be6 {[%clk 0:02:15.1]} 15. Qb3 {[%clk 0:01:39.2]} 15...
Nd7 {[%clk 0:02:07.5]} 16. Ba3 {[%clk 0:01:29]} 16... Rf7 {[%clk 0:02:00.1]} 17.
b5 {[%clk 0:01:19.8]} 17... Bh6 {[%clk 0:01:56]} 18. Qc2 {[%clk 0:01:14]} 18...
Rh7 {[%clk 0:01:49.7]} 19. Na5 {[%clk 0:01:06.2]} 19... Qg5 {[%clk 0:01:47.6]}
20. Rfd1 {[%clk 0:01:00.3]} 20... Qh5 {[%clk 0:01:27.9]} 21. Nxb7 {[%clk
0:00:41.3]} 21... Nf6 {[%clk 0:01:11.2]} 22. Nd6 {[%clk 0:00:26.3]} 22... Bxd2
{[%clk 0:00:56.2]} 23. Rxd2 {[%clk 0:00:20.4]} 23... Bd5 {[%clk 0:00:47.7]} 24.
Ne4 {[%clk 0:00:18]} 24... fxe4 {[%clk 0:00:40.1]} 25. dxe4 {[%clk 0:00:18.9]}
25... Nxe4 {[%clk 0:00:37.2]} 0-1

[Event "Early-Titled-Tuesday-Blitz-January-23-2024"]
[Site "Chess.com"]
[Date "2024.01.23"]
[Round "11"]
[White "JimDiGrease"]
[Black "Alexchess1984"]
[Result "1-0"]
[WhiteElo "2947"]
[BlackElo "2682"]
[TimeControl "180+1"]
[EndTime "10:06:37 PST"]
[Termination "JimDiGrease won by resignation"]

1. d4 {[%clk 0:03:00.9]} 1... Nf6 {[%clk 0:02:59.2]} 2. c4 {[%clk 0:03:01]} 2...
g6 {[%clk 0:02:57.7]} 3. Nc3 {[%clk 0:02:59.4]} 3... d5 {[%clk 0:02:57.5]} 4.
Nf3 {[%clk 0:02:56.2]} 4... Bg7 {[%clk 0:02:54.5]} 5. cxd5 {[%clk 0:02:56.6]}
5... Nxd5 {[%clk 0:02:53.9]} 6. e4 {[%clk 0:02:57.2]} 6... Nxc3 {[%clk
0:02:54.4]} 7. bxc3 {[%clk 0:02:58.1]} 7... O-O {[%clk 0:02:54.6]} 8. Be3 {[%clk
0:02:56.8]} 8... b6 {[%clk 0:02:54.3]} 9. Be2 {[%clk 0:02:48.4]} 9... Bb7 {[%clk
0:02:54.5]} 10. Qc2 {[%clk 0:02:48.9]} 10... c5 {[%clk 0:02:52.3]} 11. O-O
{[%clk 0:02:49.3]} 11... cxd4 {[%clk 0:02:52.3]} 12. cxd4 {[%clk 0:02:50.2]}
12... Nc6 {[%clk 0:02:51.4]} 13. Rac1 {[%clk 0:02:43.2]} 13... Rc8 {[%clk
0:02:49.9]} 14. Qa4 {[%clk 0:02:31.2]} 14... e6 {[%clk 0:02:39.9]} 15. Rfd1
{[%clk 0:02:28.4]} 15... Na5 {[%clk 0:02:38.6]} 16. Bd3 {[%clk 0:02:17]} 16...
Qd6 {[%clk 0:02:22.8]} 17. h4 {[%clk 0:01:52.9]} 17... Bc6 {[%clk 0:02:20.2]}
18. Qc2 {[%clk 0:01:52.3]} 18... Bb7 {[%clk 0:02:15]} 19. Qe2 {[%clk 0:01:47.6]}
19... Qa3 {[%clk 0:02:00.6]} 20. h5 {[%clk 0:01:44.1]} 20... Rfd8 {[%clk
0:02:00.5]} 21. h6 {[%clk 0:01:40.4]} 21... Bf8 {[%clk 0:02:00.3]} 22. Ne5
{[%clk 0:01:27.7]} 22... Rxc1 {[%clk 0:01:54.1]} 23. Bxc1 {[%clk 0:01:03.9]}
23... Qe7 {[%clk 0:01:50.6]} 24. Be3 {[%clk 0:01:03.6]} 24... Nc6 {[%clk
0:01:47.3]} 25. Nf3 {[%clk 0:00:58.3]} 25... Qd7 {[%clk 0:01:40.3]} 26. Bg5
{[%clk 0:00:37.5]} 26... Be7 {[%clk 0:01:38.9]} 27. Be3 {[%clk 0:00:37.8]} 27...
Bf8 {[%clk 0:01:32.9]} 28. Bb5 {[%clk 0:00:38.4]} 28... Qd6 {[%clk 0:01:31.1]}
29. d5 {[%clk 0:00:31.9]} 29... exd5 {[%clk 0:01:18.7]} 30. Rxd5 {[%clk
0:00:26.4]} 30... Qc7 {[%clk 0:01:15.5]} 31. Qc2 {[%clk 0:00:24.5]} 31... Qc8
{[%clk 0:01:10.9]} 32. Bxc6 {[%clk 0:00:19.6]} 32... Bxc6 {[%clk 0:00:54.3]} 33.
Rxd8 {[%clk 0:00:19.6]} 33... Qxd8 {[%clk 0:00:52.6]} 34. Qxc6 {[%clk 0:00:20]}
1-0

[Event "Early-Titled-Tuesday-Blitz-January-23-2024"]
[Site "Chess.com"]
[Date "2024.01.23"]
[Round "11"]
[White "Savagelittlemole"]
[Black "sonicdravise"]
[Result "1-0"]
[WhiteElo "2471"]
[BlackElo "2603"]
[TimeControl "180+1"]
[EndTime "10:06:42 PST"]
[Termination "Savagelittlemole won by checkmate"]

1. e4 {[%clk 0:03:00.9]} 1... c5 {[%clk 0:03:00.1]} 2. Nf3 {[%clk 0:03:01.3]}
2... Nc6 {[%clk 0:03:00.8]} 3. Bb5 {[%clk 0:03:00.9]} 3... d6 {[%clk 0:03:01.1]}
4. O-O {[%clk 0:03:00.6]} 4... Bd7 {[%clk 0:03:01]} 5. c4 {[%clk 0:03:00.5]}
5... Nf6 {[%clk 0:02:59.2]} 6. Nc3 {[%clk 0:03:00.9]} 6... e5 {[%clk 0:02:54.3]}
7. Re1 {[%clk 0:02:59.2]} 7... Be7 {[%clk 0:02:54.3]} 8. Nd5 {[%clk 0:02:59.2]}
8... O-O {[%clk 0:02:53]} 9. d3 {[%clk 0:02:58.4]} 9... Bg4 {[%clk 0:02:49.9]}
10. h3 {[%clk 0:02:55]} 10... Bxf3 {[%clk 0:02:33.5]} 11. Qxf3 {[%clk
0:02:54.9]} 11... Nxd5 {[%clk 0:02:32.3]} 12. Bxc6 {[%clk 0:02:49.3]} 12... Nb4
{[%clk 0:02:31.8]} 13. Ba4 {[%clk 0:02:44.3]} 13... Qa5 {[%clk 0:02:29.6]} 14.
Qd1 {[%clk 0:02:16.3]} 14... Nxd3 {[%clk 0:02:29.4]} 15. Bd2 {[%clk 0:02:15.4]}
15... Qd8 {[%clk 0:02:22.9]} 16. Re3 {[%clk 0:02:14.4]} 16... Nxb2 {[%clk
0:02:22.6]} 17. Qb3 {[%clk 0:02:14]} 17... Nxa4 {[%clk 0:02:22.7]} 18. Qxa4
{[%clk 0:02:14.9]} 18... Bg5 {[%clk 0:02:20.4]} 19. Rd3 {[%clk 0:02:14]} 19...
Bxd2 {[%clk 0:02:20.6]} 20. Rxd2 {[%clk 0:02:14.9]} 20... Qc7 {[%clk 0:01:04.6]}
21. Rad1 {[%clk 0:02:14.2]} 21... Rad8 {[%clk 0:01:03.9]} 22. Rd3 {[%clk
0:02:05.1]} 22... b6 {[%clk 0:01:03.7]} 23. R1d2 {[%clk 0:02:02.8]} 23... Rd7
{[%clk 0:00:59.3]} 24. Qd1 {[%clk 0:01:58.2]} 24... Rfd8 {[%clk 0:00:59.6]} 25.
Rg3 {[%clk 0:01:54.3]} 25... g6 {[%clk 0:00:59.5]} 26. h4 {[%clk 0:01:53.8]}
26... Qc6 {[%clk 0:00:57.9]} 27. Qf3 {[%clk 0:01:51.2]} 27... Re7 {[%clk
0:00:38.6]} 28. h5 {[%clk 0:01:48]} 28... Qd7 {[%clk 0:00:36.6]} 29. h6 {[%clk
0:01:40.9]} 29... Qe6 {[%clk 0:00:37.2]} 30. Qa3 {[%clk 0:01:33]} 30... f6
{[%clk 0:00:36.3]} 31. Qa4 {[%clk 0:01:26.2]} 31... Rf7 {[%clk 0:00:30.9]} 32.
Rgd3 {[%clk 0:01:25.5]} 32... f5 {[%clk 0:00:25.4]} 33. Qc6 {[%clk 0:01:20.7]}
33... fxe4 {[%clk 0:00:23.3]} 34. Rxd6 {[%clk 0:01:20.7]} 34... Rxd6 {[%clk
0:00:22.2]} 35. Rxd6 {[%clk 0:01:18.7]} 35... Qe7 {[%clk 0:00:15.3]} 36. Qd5
{[%clk 0:01:10.2]} 36... Kh8 {[%clk 0:00:13]} 37. Rd8+ {[%clk 0:01:04.1]} 37...
Rf8 {[%clk 0:00:13.3]} 38. Qxe5+ {[%clk 0:01:03.3]} 38... Qxe5 {[%clk
0:00:13.4]} 39. Rxf8# {[%clk 0:01:03.2]} 1-0

[Event "Early-Titled-Tuesday-Blitz-January-23-2024"]
[Site "Chess.com"]
[Date "2024.01.23"]
[Round "11"]
[White "martinmena"]
[Black "maurovargas01"]
[Result "1-0"]
[WhiteElo "2070"]
[BlackElo "1839"]
[TimeControl "180+1"]
[EndTime "10:06:43 PST"]
[Termination "martinmena won by checkmate"]

1. c4 {[%clk 0:03:00.9]} 1... e5 {[%clk 0:02:59.6]} 2. Nc3 {[%clk 0:02:53.5]}
2... Nc6 {[%clk 0:03:00.5]} 3. g3 {[%clk 0:02:52.1]} 3... f5 {[%clk 0:03:00.6]}
4. Bg2 {[%clk 0:02:52.1]} 4... Nf6 {[%clk 0:03:00]} 5. e3 {[%clk 0:02:50.2]}
5... Bb4 {[%clk 0:02:59.9]} 6. Nge2 {[%clk 0:02:50.3]} 6... O-O {[%clk
0:02:58.2]} 7. O-O {[%clk 0:02:49.6]} 7... Bxc3 {[%clk 0:02:44.8]} 8. Nxc3
{[%clk 0:02:43.6]} 8... Ne7 {[%clk 0:02:43.8]} 9. Nd5 {[%clk 0:02:20.9]} 9...
Nexd5 {[%clk 0:02:41.8]} 10. cxd5 {[%clk 0:02:20.7]} 10... d6 {[%clk 0:02:40.1]}
11. b4 {[%clk 0:02:13.8]} 11... Qe8 {[%clk 0:02:39.1]} 12. Bb2 {[%clk
0:02:10.7]} 12... Qg6 {[%clk 0:02:36.4]} 13. f4 {[%clk 0:02:08.6]} 13... exf4
{[%clk 0:02:23.9]} 14. Rxf4 {[%clk 0:02:03.5]} 14... Ng4 {[%clk 0:02:13.1]} 15.
Rc1 {[%clk 0:01:33.7]} 15... Rf7 {[%clk 0:02:00.4]} 16. Rfc4 {[%clk 0:01:29.1]}
16... Qh6 {[%clk 0:01:46.6]} 17. h3 {[%clk 0:01:28.4]} 17... Nxe3 {[%clk
0:00:58.6]} 18. dxe3 {[%clk 0:01:25.7]} 18... Qxe3+ {[%clk 0:00:58.3]} 19. Kh2
{[%clk 0:01:25.7]} 19... f4 {[%clk 0:00:54.1]} 20. Rxf4 {[%clk 0:01:03.2]} 20...
Rxf4 {[%clk 0:00:49.7]} 21. gxf4 {[%clk 0:01:04.1]} 21... Qxf4+ {[%clk
0:00:49.4]} 22. Kh1 {[%clk 0:01:02.8]} 22... Qg3 {[%clk 0:00:16.3]} 23. Rxc7
{[%clk 0:00:53.6]} 23... Bxh3 {[%clk 0:00:15.4]} 24. Rxg7+ {[%clk 0:00:48]}
24... Kf8 {[%clk 0:00:13.2]} 25. Qf1+ {[%clk 0:00:38.6]} 25... Ke8 {[%clk
0:00:08.3]} 26. Qf7+ {[%clk 0:00:38.2]} 26... Kd8 {[%clk 0:00:08]} 27. Qf8#
{[%clk 0:00:38.6]} 1-0

[Event "Early-Titled-Tuesday-Blitz-January-23-2024"]
[Site "Chess.com"]
[Date "2024.01.23"]
[Round "11"]
[White "Juicy_Fork"]
[Black "Ural_bogatyr"]
[Result "0-1"]
[WhiteElo "2435"]
[BlackElo "2535"]
[TimeControl "180+1"]
[EndTime "10:06:46 PST"]
[Termination "Ural_bogatyr won on time"]

1. e4 {[%clk 0:02:58.2]} 1... e5 {[%clk 0:02:59.8]} 2. Nf3 {[%clk 0:02:58.2]}
2... Nc6 {[%clk 0:03:00.4]} 3. Bb5 {[%clk 0:02:55.2]} 3... a6 {[%clk 0:03:00.6]}
4. Ba4 {[%clk 0:02:52.3]} 4... Nf6 {[%clk 0:03:01.1]} 5. O-O {[%clk 0:02:49.8]}
5... Nxe4 {[%clk 0:03:01.6]} 6. d4 {[%clk 0:02:44.7]} 6... b5 {[%clk 0:03:01.8]}
7. Bb3 {[%clk 0:02:44.6]} 7... d5 {[%clk 0:03:02.4]} 8. dxe5 {[%clk 0:02:45.2]}
8... Be6 {[%clk 0:03:03]} 9. Qe2 {[%clk 0:02:45.9]} 9... Bc5 {[%clk 0:02:57.6]}
10. Rd1 {[%clk 0:02:37.7]} 10... O-O {[%clk 0:02:45.9]} 11. Be3 {[%clk
0:02:26.1]} 11... Bxe3 {[%clk 0:02:41.7]} 12. Qxe3 {[%clk 0:02:27]} 12... Na5
{[%clk 0:02:41.1]} 13. Nbd2 {[%clk 0:02:05.2]} 13... Nxd2 {[%clk 0:02:38.5]} 14.
Rxd2 {[%clk 0:02:04.5]} 14... c6 {[%clk 0:02:31.3]} 15. Nd4 {[%clk 0:01:51.7]}
15... Qc7 {[%clk 0:02:29.3]} 16. f4 {[%clk 0:01:18.5]} 16... c5 {[%clk
0:02:26.4]} 17. Nxe6 {[%clk 0:01:08.7]} 17... fxe6 {[%clk 0:02:27.3]} 18. c3
{[%clk 0:01:06.3]} 18... Nc4 {[%clk 0:02:23.9]} 19. Bxc4 {[%clk 0:01:01.9]}
19... bxc4 {[%clk 0:02:24.8]} 20. b3 {[%clk 0:00:50.5]} 20... cxb3 {[%clk
0:02:16.4]} 21. axb3 {[%clk 0:00:51.4]} 21... a5 {[%clk 0:02:10.4]} 22. h4
{[%clk 0:00:32.5]} 22... Rab8 {[%clk 0:02:08.9]} 23. c4 {[%clk 0:00:31.2]} 23...
d4 {[%clk 0:02:08.1]} 24. Qg3 {[%clk 0:00:31]} 24... Rb4 {[%clk 0:01:52.7]} 25.
Rd3 {[%clk 0:00:27]} 25... Rfb8 {[%clk 0:01:49.2]} 26. h5 {[%clk 0:00:25.1]}
26... h6 {[%clk 0:01:48.6]} 27. Ra3 {[%clk 0:00:14.1]} 27... Qf7 {[%clk
0:01:29.9]} 28. Qg4 {[%clk 0:00:11]} 28... a4 {[%clk 0:01:20.1]} 29. Rxa4 {[%clk
0:00:08.2]} 29... Rxb3 {[%clk 0:01:20.1]} 30. Rxb3 {[%clk 0:00:07.3]} 30... Rxb3
{[%clk 0:01:21]} 31. Ra8+ {[%clk 0:00:07.9]} 31... Kh7 {[%clk 0:01:21.1]} 32.
Ra6 {[%clk 0:00:07.2]} 32... Qf5 {[%clk 0:01:01.7]} 33. Qd1 {[%clk 0:00:03.4]}
33... Rb1 {[%clk 0:01:00.7]} 0-1

[Event "Early-Titled-Tuesday-Blitz-January-23-2024"]
[Site "Chess.com"]
[Date "2024.01.23"]
[Round "11"]
[White "m_ezat"]
[Black "Roedor"]
[Result "0-1"]
[WhiteElo "2452"]
[BlackElo "2317"]
[TimeControl "180+1"]
[EndTime "10:06:57 PST"]
[Termination "Roedor won by resignation"]

1. d4 {[%clk 0:02:51.7]} 1... Nf6 {[%clk 0:02:59.4]} 2. c4 {[%clk 0:02:51.4]}
2... g6 {[%clk 0:02:59]} 3. Nc3 {[%clk 0:02:50.8]} 3... d5 {[%clk 0:02:59.3]} 4.
Bg5 {[%clk 0:02:49.2]} 4... Bg7 {[%clk 0:02:58.6]} 5. Bxf6 {[%clk 0:02:43.7]}
5... Bxf6 {[%clk 0:02:58]} 6. cxd5 {[%clk 0:02:36.4]} 6... O-O {[%clk
0:02:56.5]} 7. e3 {[%clk 0:02:30.3]} 7... c5 {[%clk 0:02:53.5]} 8. dxc6 {[%clk
0:02:29.2]} 8... Nxc6 {[%clk 0:02:48.3]} 9. Bc4 {[%clk 0:02:23.4]} 9... e5
{[%clk 0:02:43.2]} 10. dxe5 {[%clk 0:02:21.7]} 10... Nxe5 {[%clk 0:02:44.1]} 11.
Qxd8 {[%clk 0:02:20.8]} 11... Rxd8 {[%clk 0:02:44.2]} 12. Be2 {[%clk 0:02:20.9]}
12... Nd3+ {[%clk 0:02:44.3]} 13. Bxd3 {[%clk 0:02:20]} 13... Rxd3 {[%clk
0:02:45.2]} 14. Ke2 {[%clk 0:02:19.9]} 14... Bf5 {[%clk 0:02:16.3]} 15. Nf3
{[%clk 0:02:16.3]} 15... Bxc3 {[%clk 0:02:11.3]} 16. bxc3 {[%clk 0:02:15.1]}
16... Rxc3 {[%clk 0:02:12.2]} 17. Rhc1 {[%clk 0:02:14.7]} 17... Rac8 {[%clk
0:02:11.7]} 18. Rxc3 {[%clk 0:02:13.4]} 18... Rxc3 {[%clk 0:02:12.6]} 19. Nd4
{[%clk 0:02:13.6]} 19... Be4 {[%clk 0:02:07.9]} 20. f3 {[%clk 0:02:07.5]} 20...
Bd5 {[%clk 0:02:07.9]} 21. a4 {[%clk 0:02:04.5]} 21... b6 {[%clk 0:01:58.1]} 22.
a5 {[%clk 0:02:03.8]} 22... b5 {[%clk 0:01:51.5]} 23. a6 {[%clk 0:01:58]} 23...
Bc4+ {[%clk 0:01:48.8]} 24. Kf2 {[%clk 0:01:56.7]} 24... b4 {[%clk 0:01:45.7]}
25. Nc6 {[%clk 0:01:55.6]} 25... b3 {[%clk 0:01:40.8]} 26. Nxa7 {[%clk
0:01:52.9]} 26... b2 {[%clk 0:01:41.1]} 27. Rb1 {[%clk 0:01:52.5]} 27... Rc2+
{[%clk 0:01:41.2]} 28. Kg3 {[%clk 0:01:51.4]} 28... Ba2 {[%clk 0:01:39.7]} 29.
Rd1 {[%clk 0:01:41.3]} 29... b1=Q {[%clk 0:01:37.5]} 30. Rxb1 {[%clk 0:01:41.1]}
30... Bxb1 {[%clk 0:01:38.4]} 31. Nb5 {[%clk 0:01:36.3]} 31... Ra2 {[%clk
0:01:36.6]} 32. a7 {[%clk 0:01:34.7]} 32... Bd3 {[%clk 0:01:36.6]} 33. Nd6
{[%clk 0:01:32.5]} 33... Rxa7 {[%clk 0:01:35.9]} 34. e4 {[%clk 0:01:33.4]} 34...
Rd7 {[%clk 0:01:34.2]} 35. Nc8 {[%clk 0:01:33.4]} 35... Kg7 {[%clk 0:01:27.6]}
36. Nb6 {[%clk 0:01:33.3]} 36... Rb7 {[%clk 0:01:27.7]} 37. Nd5 {[%clk 0:01:33]}
37... Bc4 {[%clk 0:01:26.7]} 38. Ne3 {[%clk 0:01:32.8]} 38... Be6 {[%clk
0:01:26.4]} 39. h4 {[%clk 0:01:33.3]} 39... h6 {[%clk 0:01:26.1]} 40. Kf4 {[%clk
0:01:33.2]} 40... Kf6 {[%clk 0:01:24.3]} 41. g4 {[%clk 0:01:31.9]} 41... g5+
{[%clk 0:01:24.5]} 42. hxg5+ {[%clk 0:01:31.6]} 42... hxg5+ {[%clk 0:01:25.4]}
43. Kg3 {[%clk 0:01:32.3]} 43... Ke5 {[%clk 0:01:24.5]} 44. Ng2 {[%clk
0:01:28.8]} 44... Rb3 {[%clk 0:01:21.1]} 45. Ne1 {[%clk 0:01:28.2]} 45... Bc4
{[%clk 0:01:19.1]} 46. Kf2 {[%clk 0:01:23.7]} 46... Rb2+ {[%clk 0:01:12.5]} 47.
Kg3 {[%clk 0:01:22.3]} 47... Bf1 {[%clk 0:00:59.5]} 48. f4+ {[%clk 0:01:06.5]}
48... gxf4+ {[%clk 0:00:57.7]} 49. Kf3 {[%clk 0:01:07.4]} 49... Be2+ {[%clk
0:00:54.1]} 50. Kf2 {[%clk 0:01:03.6]} 50... Bxg4+ {[%clk 0:00:54.2]} 51. Kg1
{[%clk 0:01:00.7]} 51... Rb1 {[%clk 0:00:53]} 52. Kh2 {[%clk 0:00:58.9]} 52...
Rxe1 {[%clk 0:00:52.5]} 53. Kg2 {[%clk 0:00:52.3]} 53... Re2+ {[%clk 0:00:51.4]}
0-1